[Event "Late-Titled-Tuesday-Blitz-May-14-2024"]
[Site "Chess.com"]
[Date "2024.05.14"]
[Round "2"]
[White "TreinadorBR"]
[Black "djano"]
[Result "0-1"]
[WhiteElo "2319"]
[BlackElo "2535"]
[TimeControl "180+1"]
[EndTime "14:19:15 PDT"]
[Termination "djano won by resignation"]

1. e4 {[%clk 0:03:00.9]} 1... c5 {[%clk 0:02:59.6]} 2. Nf3 {[%clk 0:03:01.2]}
2... g6 {[%clk 0:02:59.5]} 3. d4 {[%clk 0:03:01.5]} 3... cxd4 {[%clk 0:03:00.4]}
4. Nxd4 {[%clk 0:03:01.9]} 4... Nf6 {[%clk 0:02:59.1]} 5. Nc3 {[%clk 0:03:00.2]}
5... Nc6 {[%clk 0:02:59.1]} 6. Bc4 {[%clk 0:02:56]} 6... Bg7 {[%clk 0:02:57.6]}
7. Nxc6 {[%clk 0:02:55.9]} 7... bxc6 {[%clk 0:02:56.9]} 8. e5 {[%clk 0:02:56.3]}
8... Ng8 {[%clk 0:02:55.3]} 9. Qf3 {[%clk 0:02:56.6]} 9... f6 {[%clk 0:02:47.1]}
10. O-O {[%clk 0:02:54]} 10... Qa5 {[%clk 0:02:22.2]} 11. Re1 {[%clk 0:02:50.5]}
11... e6 {[%clk 0:02:18.3]} 12. Bd2 {[%clk 0:02:36.1]} 12... f5 {[%clk
0:02:08.5]} 13. Nb5 {[%clk 0:02:25.9]} 13... Qxd2 {[%clk 0:02:03.6]} 14. Nc7+
{[%clk 0:02:18.6]} 14... Kd8 {[%clk 0:01:53.7]} 15. Nxe6+ {[%clk 0:02:06.3]}
15... Ke7 {[%clk 0:01:19.5]} 16. Rad1 {[%clk 0:01:52]} 16... Qb4 {[%clk
0:01:14.2]} 17. Nxg7 {[%clk 0:01:41.1]} 17... Qxc4 {[%clk 0:01:12.1]} 18. Rd6
{[%clk 0:01:33.2]} 18... Nh6 {[%clk 0:00:58.8]} 19. Qh3 {[%clk 0:00:59.8]} 19...
Nf7 {[%clk 0:00:53.3]} 20. Rf6 {[%clk 0:00:48.1]} 20... Nxe5 {[%clk 0:00:45.9]}
21. Rxf5 {[%clk 0:00:39.8]} 21... gxf5 {[%clk 0:00:40.7]} 22. Nxf5+ {[%clk
0:00:39.5]} 22... Kd8 {[%clk 0:00:38.8]} 23. Rxe5 {[%clk 0:00:36.5]} 23... Ba6
{[%clk 0:00:36.9]} 24. g3 {[%clk 0:00:31.4]} 24... Kc7 {[%clk 0:00:23.3]} 25.
Ne3 {[%clk 0:00:28.9]} 25... Qb4 {[%clk 0:00:19.7]} 26. c3 {[%clk 0:00:22]}
26... Qxb2 {[%clk 0:00:19.3]} 27. Qf5 {[%clk 0:00:17.7]} 27... Qc1+ {[%clk
0:00:16.9]} 28. Kg2 {[%clk 0:00:18]} 28... Rae8 {[%clk 0:00:15.1]} 29. Ra5
{[%clk 0:00:17.3]} 29... Rxe3 {[%clk 0:00:13.5]} 30. fxe3 {[%clk 0:00:17.4]}
30... Qd2+ {[%clk 0:00:10.6]} 31. Kh3 {[%clk 0:00:16.7]} 31... Qd3 {[%clk
0:00:11.5]} 32. Qe5+ {[%clk 0:00:15.3]} 32... d6 {[%clk 0:00:11.3]} 33. Qxh8
{[%clk 0:00:13.8]} 33... Qf1+ {[%clk 0:00:10.8]} 34. Kh4 {[%clk 0:00:13.2]}
34... Kb6 {[%clk 0:00:09.1]} 35. Rg5 {[%clk 0:00:11]} 35... Qg2 {[%clk
0:00:07.3]} 36. Qd4+ {[%clk 0:00:11.4]} 36... c5 {[%clk 0:00:06.6]} 37. Qxd6+
{[%clk 0:00:11.2]} 37... Qc6 {[%clk 0:00:02.7]} 38. Qxc6+ {[%clk 0:00:09.8]}
38... Kxc6 {[%clk 0:00:03.6]} 39. Rg7 {[%clk 0:00:09.9]} 39... Bd3 {[%clk
0:00:04.1]} 40. Rxa7 {[%clk 0:00:09.7]} 40... Kb6 {[%clk 0:00:04.5]} 41. Rd7
{[%clk 0:00:09.1]} 41... Bc2 {[%clk 0:00:04]} 42. Rd5 {[%clk 0:00:06.8]} 42...
Kc6 {[%clk 0:00:03.2]} 43. c4 {[%clk 0:00:06.5]} 43... Be4 {[%clk 0:00:02.7]}
44. Re5 {[%clk 0:00:06.4]} 44... Bd3 {[%clk 0:00:03.2]} 45. Re6+ {[%clk
0:00:04.6]} 45... Kd7 {[%clk 0:00:03.2]} 46. Ra6 {[%clk 0:00:03.9]} 46... Bxc4
{[%clk 0:00:03.1]} 47. Ra5 {[%clk 0:00:04.8]} 47... Kc6 {[%clk 0:00:02.8]} 48.
a3 {[%clk 0:00:04.8]} 48... Bd3 {[%clk 0:00:03.7]} 49. Kg4 {[%clk 0:00:04.6]}
49... c4 {[%clk 0:00:04.6]} 50. Kf3 {[%clk 0:00:04.3]} 50... c3 {[%clk
0:00:05.5]} 51. Ra4 {[%clk 0:00:02.9]} 51... c2 {[%clk 0:00:06.4]} 52. Ra6+
{[%clk 0:00:01.7]} 52... Kc7 {[%clk 0:00:06.6]} 53. Ra5 {[%clk 0:00:01.1]} 53...
c1=Q {[%clk 0:00:06.6]} 54. Re5 {[%clk 0:00:01.6]} 54... Kd6 {[%clk 0:00:06.8]}
55. Rh5 {[%clk 0:00:00.5]} 55... Qf1+ {[%clk 0:00:07.4]} 56. Kg4 {[%clk
0:00:00.5]} 56... Be2+ {[%clk 0:00:07.9]} 57. Kh4 {[%clk 0:00:01.2]} 57... Bxh5
{[%clk 0:00:07.9]} 58. Kxh5 {[%clk 0:00:02.1]} 58... Qh3+ {[%clk 0:00:08]} 0-1

[Event "Late-Titled-Tuesday-Blitz-May-14-2024"]
[Site "Chess.com"]
[Date "2024.05.14"]
[Round "2"]
[White "secretworker2027"]
[Black "Rsnr"]
[Result "1/2-1/2"]
[WhiteElo "2623"]
[BlackElo "2896"]
[TimeControl "180+1"]
[EndTime "14:19:23 PDT"]
[Termination "Game drawn by repetition"]

1. e4 {[%clk 0:03:00.9]} 1... c6 {[%clk 0:03:00.2]} 2. Nf3 {[%clk 0:03:00.7]}
2... d5 {[%clk 0:03:01.1]} 3. d3 {[%clk 0:03:01.4]} 3... g6 {[%clk 0:03:00.4]}
4. e5 {[%clk 0:02:57.5]} 4... f6 {[%clk 0:03:00.6]} 5. d4 {[%clk 0:02:56.8]}
5... fxe5 {[%clk 0:03:00.6]} 6. Nxe5 {[%clk 0:02:55.2]} 6... Bg7 {[%clk
0:03:00.1]} 7. Bd3 {[%clk 0:02:54.8]} 7... Nd7 {[%clk 0:02:55.4]} 8. Bf4 {[%clk
0:02:47.7]} 8... Qb6 {[%clk 0:02:41.5]} 9. O-O {[%clk 0:02:31.1]} 9... Nxe5
{[%clk 0:02:33.5]} 10. dxe5 {[%clk 0:02:28.4]} 10... Nh6 {[%clk 0:02:24.8]} 11.
Qc1 {[%clk 0:02:20]} 11... Nf7 {[%clk 0:02:24.6]} 12. Re1 {[%clk 0:02:19.7]}
12... O-O {[%clk 0:02:10.2]} 13. Bg3 {[%clk 0:02:19.4]} 13... Bh6 {[%clk
0:01:42.4]} 14. Qd1 {[%clk 0:02:10.2]} 14... Qxb2 {[%clk 0:01:38.5]} 15. Nd2
{[%clk 0:02:09.9]} 15... Qc3 {[%clk 0:01:22.6]} 16. Nf3 {[%clk 0:02:07.8]} 16...
Bg4 {[%clk 0:01:22.7]} 17. Be2 {[%clk 0:01:58.6]} 17... e6 {[%clk 0:01:16.2]}
18. Rb1 {[%clk 0:01:57.7]} 18... b5 {[%clk 0:01:14.8]} 19. Nd4 {[%clk
0:01:53.3]} 19... Bxe2 {[%clk 0:01:14.4]} 20. Rxe2 {[%clk 0:01:53.6]} 20... Rae8
{[%clk 0:01:12]} 21. Qd3 {[%clk 0:01:29.8]} 21... Qxd3 {[%clk 0:01:04.1]} 22.
cxd3 {[%clk 0:01:29.8]} 22... Nd8 {[%clk 0:01:04.3]} 23. Rc2 {[%clk 0:01:28.4]}
23... Rf7 {[%clk 0:00:46.7]} 24. Bh4 {[%clk 0:01:20]} 24... g5 {[%clk
0:00:43.9]} 25. Bg3 {[%clk 0:01:20.2]} 25... a6 {[%clk 0:00:37.2]} 26. Nxc6
{[%clk 0:01:11.4]} 26... Rc7 {[%clk 0:00:37.5]} 27. Rbc1 {[%clk 0:01:11.5]}
27... Bf8 {[%clk 0:00:15.2]} 28. Nd4 {[%clk 0:01:09.3]} 28... Rxc2 {[%clk
0:00:16.1]} 29. Rxc2 {[%clk 0:01:09.5]} 29... Nb7 {[%clk 0:00:15.8]} 30. h4
{[%clk 0:01:03.5]} 30... Nc5 {[%clk 0:00:13.2]} 31. hxg5 {[%clk 0:01:01.8]}
31... Nxd3 {[%clk 0:00:13.7]} 32. Rc7 {[%clk 0:01:00.9]} 32... Bg7 {[%clk
0:00:12.4]} 33. Nc6 {[%clk 0:00:57.9]} 33... Bf8 {[%clk 0:00:07.9]} 34. f4
{[%clk 0:00:54.9]} 34... b4 {[%clk 0:00:06.5]} 35. Kh2 {[%clk 0:00:50.4]} 35...
Nc5 {[%clk 0:00:04.6]} 36. Nd4 {[%clk 0:00:44.7]} 36... a5 {[%clk 0:00:04]} 37.
Be1 {[%clk 0:00:38.1]} 37... Nd3 {[%clk 0:00:03.8]} 38. Bd2 {[%clk 0:00:37.9]}
38... a4 {[%clk 0:00:04.4]} 39. g3 {[%clk 0:00:33.6]} 39... Bc5 {[%clk
0:00:04.3]} 40. Ne2 {[%clk 0:00:27.1]} 40... b3 {[%clk 0:00:04.7]} 41. axb3
{[%clk 0:00:27.2]} 41... axb3 {[%clk 0:00:05.6]} 42. Rb7 {[%clk 0:00:26.6]}
42... b2 {[%clk 0:00:06.2]} 43. Bc3 {[%clk 0:00:26.9]} 43... Rc8 {[%clk
0:00:02.1]} 44. Bxb2 {[%clk 0:00:26.8]} 44... Nxb2 {[%clk 0:00:02.3]} 45. Rxb2
{[%clk 0:00:26.9]} 45... Be3 {[%clk 0:00:02.7]} 46. Kg2 {[%clk 0:00:26.5]} 46...
d4 {[%clk 0:00:03.3]} 47. Kf3 {[%clk 0:00:27]} 47... Kf7 {[%clk 0:00:01.9]} 48.
Rb7+ {[%clk 0:00:26.1]} 48... Kg6 {[%clk 0:00:02.5]} 49. g4 {[%clk 0:00:24.8]}
49... Rc6 {[%clk 0:00:02.4]} 50. Ke4 {[%clk 0:00:24.5]} 50... h6 {[%clk
0:00:02]} 51. gxh6 {[%clk 0:00:24]} 51... Kxh6 {[%clk 0:00:02.9]} 52. f5 {[%clk
0:00:24.5]} 52... exf5+ {[%clk 0:00:03.8]} 53. gxf5 {[%clk 0:00:25.4]} 53... Bf2
{[%clk 0:00:03.9]} 54. e6 {[%clk 0:00:24.6]} 54... Kg5 {[%clk 0:00:04.1]} 55. e7
{[%clk 0:00:24.7]} 55... Rc8 {[%clk 0:00:03.5]} 56. Nxd4 {[%clk 0:00:24.2]}
56... Bxd4 {[%clk 0:00:03.4]} 57. Kxd4 {[%clk 0:00:24.9]} 57... Kxf5 {[%clk
0:00:04.3]} 58. Kd5 {[%clk 0:00:24.8]} 58... Kf6 {[%clk 0:00:03.5]} 59. Kd6
{[%clk 0:00:25.3]} 59... Kf7 {[%clk 0:00:04.2]} 60. Kd7 {[%clk 0:00:24.1]} 60...
Re8 {[%clk 0:00:04.5]} 61. Kd6 {[%clk 0:00:23.7]} 61... Ra8 {[%clk 0:00:03.5]}
62. Rc7 {[%clk 0:00:20.7]} 62... Ra6+ {[%clk 0:00:03.5]} 63. Kd7 {[%clk
0:00:20.5]} 63... Ra8 {[%clk 0:00:03.9]} 64. Kd6 {[%clk 0:00:13.8]} 64... Ra6+
{[%clk 0:00:04]} 65. Kd7 {[%clk 0:00:14.2]} 65... Ra8 {[%clk 0:00:04.3]} 66. Kd6
{[%clk 0:00:14.4]} 1/2-1/2

[Event "Late-Titled-Tuesday-Blitz-May-14-2024"]
[Site "Chess.com"]
[Date "2024.05.14"]
[Round "2"]
[White "NikitaShnadrygin"]
[Black "ural58"]
[Result "1-0"]
[WhiteElo "2758"]
[BlackElo "2456"]
[TimeControl "180+1"]
[EndTime "14:19:28 PDT"]
[Termination "NikitaShnadrygin won by resignation"]

1. e4 {[%clk 0:03:00.9]} 1... d5 {[%clk 0:02:58.3]} 2. exd5 {[%clk 0:03:00.4]}
2... Qxd5 {[%clk 0:02:57.3]} 3. Nf3 {[%clk 0:03:01]} 3... Bg4 {[%clk 0:02:56.4]}
4. Be2 {[%clk 0:03:00.6]} 4... Nc6 {[%clk 0:02:56.4]} 5. h3 {[%clk 0:03:01.1]}
5... Bxf3 {[%clk 0:02:55.9]} 6. Bxf3 {[%clk 0:03:02]} 6... Qe6+ {[%clk
0:02:56.1]} 7. Qe2 {[%clk 0:03:02.5]} 7... Nd4 {[%clk 0:02:56.3]} 8. Qxe6 {[%clk
0:03:01.9]} 8... Nxf3+ {[%clk 0:02:56.3]} 9. gxf3 {[%clk 0:03:01.1]} 9... fxe6
{[%clk 0:02:56.9]} 10. d4 {[%clk 0:02:51.9]} 10... g6 {[%clk 0:02:55]} 11. Be3
{[%clk 0:02:47.3]} 11... Nh6 {[%clk 0:02:46.1]} 12. Na3 {[%clk 0:02:46]} 12...
Nf5 {[%clk 0:02:40.3]} 13. Nb5 {[%clk 0:02:43.8]} 13... Kd7 {[%clk 0:02:35.9]}
14. Ke2 {[%clk 0:02:40.4]} 14... a6 {[%clk 0:02:34.2]} 15. Nc3 {[%clk
0:02:39.3]} 15... Rd8 {[%clk 0:02:33.7]} 16. Ne4 {[%clk 0:02:38.8]} 16... b6
{[%clk 0:02:19]} 17. Rad1 {[%clk 0:02:36.8]} 17... Bh6 {[%clk 0:02:16.7]} 18. h4
{[%clk 0:02:26]} 18... Bxe3 {[%clk 0:01:34.8]} 19. fxe3 {[%clk 0:02:26]} 19...
h6 {[%clk 0:01:34.6]} 20. Rdg1 {[%clk 0:02:25.2]} 20... Rhg8 {[%clk 0:01:33.1]}
21. Rg4 {[%clk 0:02:19.5]} 21... Ke8 {[%clk 0:01:29.2]} 22. c3 {[%clk 0:02:15]}
22... Kf7 {[%clk 0:01:29.6]} 23. Nf2 {[%clk 0:02:14.2]} 23... c5 {[%clk
0:01:23.2]} 24. Nd3 {[%clk 0:02:12]} 24... cxd4 {[%clk 0:01:18.5]} 25. cxd4
{[%clk 0:02:11.8]} 25... g5 {[%clk 0:01:16.5]} 26. Ne5+ {[%clk 0:02:09.4]} 26...
Kf8 {[%clk 0:01:12]} 27. hxg5 {[%clk 0:02:07.7]} 27... hxg5 {[%clk 0:01:11.8]}
28. Rhg1 {[%clk 0:02:02.7]} 28... Rc8 {[%clk 0:01:10.7]} 29. Kd3 {[%clk
0:02:02.3]} 29... b5 {[%clk 0:01:03.8]} 30. f4 {[%clk 0:01:39.9]} 30... Nd6
{[%clk 0:00:58.5]} 31. fxg5 {[%clk 0:01:38.5]} 31... Nc4 {[%clk 0:00:55.5]} 32.
Rf1+ {[%clk 0:01:18.5]} 32... Ke8 {[%clk 0:00:54.5]} 33. Nxc4 {[%clk 0:01:07.1]}
33... Rxc4 {[%clk 0:00:53.6]} 34. b3 {[%clk 0:01:06.3]} 34... Rc6 {[%clk
0:00:51.3]} 35. Rg2 {[%clk 0:01:03]} 35... e5 {[%clk 0:00:48.5]} 36. d5 {[%clk
0:00:59]} 36... Rcg6 {[%clk 0:00:48.6]} 37. Rfg1 {[%clk 0:00:59.3]} 37... e6
{[%clk 0:00:48.9]} 38. Ke4 {[%clk 0:00:57]} 38... exd5+ {[%clk 0:00:48.8]} 39.
Kxd5 {[%clk 0:00:56.9]} 39... Ke7 {[%clk 0:00:49]} 40. Kxe5 {[%clk 0:00:57.5]}
40... Re6+ {[%clk 0:00:48.5]} 41. Kf5 {[%clk 0:00:53.5]} 41... Rf8+ {[%clk
0:00:48.1]} 42. Kg4 {[%clk 0:00:54]} 42... Rxe3 {[%clk 0:00:48.2]} 43. Rc2
{[%clk 0:00:39.4]} 43... Re4+ {[%clk 0:00:47.5]} 44. Kg3 {[%clk 0:00:39.3]}
44... Rf5 {[%clk 0:00:46.1]} 45. Kh3 {[%clk 0:00:34.8]} 45... Kd6 {[%clk
0:00:23.9]} 46. Rg4 {[%clk 0:00:25.7]} 46... Re1 {[%clk 0:00:22.5]} 47. Rg3
{[%clk 0:00:21.7]} 47... Rh1+ {[%clk 0:00:12.6]} 48. Kg4 {[%clk 0:00:19.2]}
48... Rd5 {[%clk 0:00:12.8]} 49. Rf2 {[%clk 0:00:18.1]} 49... Ke7 {[%clk
0:00:12]} 50. Rf4 {[%clk 0:00:17.6]} 50... Rh8 {[%clk 0:00:11]} 51. Re3+ {[%clk
0:00:17.1]} 51... Kd6 {[%clk 0:00:11.1]} 52. Rf6+ {[%clk 0:00:17.6]} 52... Kc5
{[%clk 0:00:10.7]} 53. Rf5 {[%clk 0:00:18]} 53... Rxf5 {[%clk 0:00:08.8]} 54.
Kxf5 {[%clk 0:00:18.9]} 54... Rf8+ {[%clk 0:00:08.6]} 55. Kg6 {[%clk 0:00:19.1]}
55... Rf2 {[%clk 0:00:09.2]} 56. a3 {[%clk 0:00:18.5]} 56... Ra2 {[%clk
0:00:08.3]} 57. b4+ {[%clk 0:00:18.9]} 57... Kd4 {[%clk 0:00:07.7]} 58. Rg3
{[%clk 0:00:19.3]} 58... a5 {[%clk 0:00:04.6]} 59. bxa5 {[%clk 0:00:19.4]} 59...
Kc5 {[%clk 0:00:04.9]} 60. Kf7 {[%clk 0:00:17.3]} 60... Rf2+ {[%clk 0:00:04.9]}
61. Kg8 {[%clk 0:00:17.7]} 61... Rf4 {[%clk 0:00:03.8]} 62. g6 {[%clk
0:00:17.7]} 62... Ra4 {[%clk 0:00:04.5]} 63. g7 {[%clk 0:00:18.2]} 63... Rxa5
{[%clk 0:00:05.2]} 64. Kh8 {[%clk 0:00:18.8]} 1-0

[Event "Late-Titled-Tuesday-Blitz-May-14-2024"]
[Site "Chess.com"]
[Date "2024.05.14"]
[Round "2"]
[White "NMJeevanK"]
[Black "rionelG"]
[Result "1-0"]
[WhiteElo "2723"]
[BlackElo "2308"]
[TimeControl "180+1"]
[EndTime "14:19:30 PDT"]
[Termination "NMJeevanK won on time"]

1. e4 {[%clk 0:03:00.9]} 1... c5 {[%clk 0:02:59.5]} 2. Nf3 {[%clk 0:03:01]} 2...
d6 {[%clk 0:03:00.1]} 3. d4 {[%clk 0:03:01.7]} 3... cxd4 {[%clk 0:03:01]} 4.
Nxd4 {[%clk 0:03:02.6]} 4... Nf6 {[%clk 0:03:01.5]} 5. Nc3 {[%clk 0:03:03.2]}
5... a6 {[%clk 0:03:02]} 6. Be2 {[%clk 0:03:03.8]} 6... e5 {[%clk 0:03:01.1]} 7.
Nb3 {[%clk 0:03:03.5]} 7... Be7 {[%clk 0:03:01.5]} 8. O-O {[%clk 0:03:04]} 8...
Be6 {[%clk 0:03:01]} 9. Be3 {[%clk 0:03:04.2]} 9... Nbd7 {[%clk 0:03:00.3]} 10.
Kh1 {[%clk 0:03:01.7]} 10... Qc7 {[%clk 0:02:54.5]} 11. f4 {[%clk 0:03:01.5]}
11... Rc8 {[%clk 0:02:51.9]} 12. f5 {[%clk 0:02:56.4]} 12... Bc4 {[%clk
0:02:51.8]} 13. Qd2 {[%clk 0:02:48.5]} 13... b5 {[%clk 0:02:50.7]} 14. a3 {[%clk
0:02:41.6]} 14... O-O {[%clk 0:02:47.8]} 15. Rad1 {[%clk 0:02:41.1]} 15... Nb6
{[%clk 0:02:36.4]} 16. Bxb6 {[%clk 0:02:30.9]} 16... Qxb6 {[%clk 0:02:36]} 17.
Rf3 {[%clk 0:02:29.2]} 17... Rfd8 {[%clk 0:02:30.9]} 18. Rg3 {[%clk 0:02:28.1]}
18... d5 {[%clk 0:01:59]} 19. Qg5 {[%clk 0:02:19.1]} 19... Bf8 {[%clk
0:01:58.6]} 20. Bxc4 {[%clk 0:02:01.5]} 20... bxc4 {[%clk 0:01:45.6]} 21. Nd2
{[%clk 0:01:44.6]} 21... d4 {[%clk 0:01:42.4]} 22. Na4 {[%clk 0:01:40.3]} 22...
Qc6 {[%clk 0:01:31.1]} 23. b3 {[%clk 0:01:28.7]} 23... c3 {[%clk 0:01:23.7]} 24.
Nc4 {[%clk 0:01:18.1]} 24... Nxe4 {[%clk 0:01:17]} 25. Qh4 {[%clk 0:01:18]}
25... Nf2+ {[%clk 0:01:04]} 26. Kg1 {[%clk 0:01:18.1]} 26... Nxd1 {[%clk
0:01:04.7]} 27. f6 {[%clk 0:01:14.8]} 27... d3 {[%clk 0:00:53.2]} 28. fxg7
{[%clk 0:00:48]} 28... Bc5+ {[%clk 0:00:52.2]} 29. Kf1 {[%clk 0:00:31.8]} 29...
d2 {[%clk 0:00:52.2]} 30. Rh3 {[%clk 0:00:16.7]} 30... Qg6 {[%clk 0:00:51.8]}
31. Nxc5 {[%clk 0:00:15.8]} 31... Rxc5 {[%clk 0:00:49.7]} 32. Qxd8+ {[%clk
0:00:15.1]} 32... Kxg7 {[%clk 0:00:50.1]} 33. Rg3 {[%clk 0:00:14.4]} 33... Rxc4
{[%clk 0:00:39.2]} 34. Rxg6+ {[%clk 0:00:09.2]} 34... hxg6 {[%clk 0:00:37.5]}
35. bxc4 {[%clk 0:00:09]} 35... Ne3+ {[%clk 0:00:35.1]} 36. Ke2 {[%clk
0:00:09.5]} 36... d1=Q+ {[%clk 0:00:35.3]} 37. Qxd1 {[%clk 0:00:10.1]} 37...
Nxd1 {[%clk 0:00:35.6]} 38. Kxd1 {[%clk 0:00:11]} 38... f5 {[%clk 0:00:34.2]}
39. Ke2 {[%clk 0:00:09.9]} 39... Kf6 {[%clk 0:00:32.7]} 40. Kd3 {[%clk
0:00:09.7]} 40... e4+ {[%clk 0:00:30.9]} 41. Kxc3 {[%clk 0:00:09.8]} 41... Ke5
{[%clk 0:00:31.6]} 42. g3 {[%clk 0:00:07]} 42... g5 {[%clk 0:00:30.4]} 43. a4
{[%clk 0:00:07.4]} 43... f4 {[%clk 0:00:29.9]} 44. Kd2 {[%clk 0:00:07.4]} 44...
Kd4 {[%clk 0:00:20.4]} 45. gxf4 {[%clk 0:00:03.6]} 45... gxf4 {[%clk 0:00:20]}
46. h4 {[%clk 0:00:04.5]} 46... e3+ {[%clk 0:00:15.7]} 47. Ke2 {[%clk 0:00:05]}
47... Ke4 {[%clk 0:00:15.9]} 48. c5 {[%clk 0:00:05.1]} 48... f3+ {[%clk
0:00:16.8]} 49. Ke1 {[%clk 0:00:05.2]} 49... f2+ {[%clk 0:00:06.1]} 50. Ke2
{[%clk 0:00:05.4]} 50... Kd4 {[%clk 0:00:06.8]} 51. c6 {[%clk 0:00:04.7]} 51...
Kc3 {[%clk 0:00:07.3]} 52. c7 {[%clk 0:00:05]} 52... f1=Q+ {[%clk 0:00:07.3]}
53. Kxf1 {[%clk 0:00:04.8]} 53... Kd2 {[%clk 0:00:08.2]} 54. c8=Q {[%clk
0:00:04.7]} 54... e2+ {[%clk 0:00:09.1]} 55. Kg2 {[%clk 0:00:05.3]} 55... e1=Q
{[%clk 0:00:09.6]} 56. Qxa6 {[%clk 0:00:04.6]} 56... Kxc2 {[%clk 0:00:06.9]} 57.
Qc4+ {[%clk 0:00:04.5]} 57... Kb2 {[%clk 0:00:06.5]} 58. Kh3 {[%clk 0:00:05]}
58... Qe3+ {[%clk 0:00:05.5]} 59. Kg4 {[%clk 0:00:04.3]} 59... Qg1+ {[%clk
0:00:05.1]} 60. Kf5 {[%clk 0:00:04.2]} 60... Qf2+ {[%clk 0:00:03.9]} 61. Qf4
{[%clk 0:00:05.1]} 61... Qc2+ {[%clk 0:00:00.3]} 62. Kg5 {[%clk 0:00:05]} 1-0

[Event "Late-Titled-Tuesday-Blitz-May-14-2024"]
[Site "Chess.com"]
[Date "2024.05.14"]
[Round "2"]
[White "rikchessmx"]
[Black "BestestBP"]
[Result "0-1"]
[WhiteElo "2445"]
[BlackElo "2177"]
[TimeControl "180+1"]
[EndTime "14:19:41 PDT"]
[Termination "BestestBP won on time"]

1. e4 {[%clk 0:03:00.9]} 1... e5 {[%clk 0:02:58.7]} 2. Nf3 {[%clk 0:03:00.9]}
2... Nc6 {[%clk 0:02:59.2]} 3. Bb5 {[%clk 0:03:01.1]} 3... a6 {[%clk 0:02:58.7]}
4. Ba4 {[%clk 0:03:00.5]} 4... Nf6 {[%clk 0:02:58.9]} 5. O-O {[%clk 0:03:01]}
5... Be7 {[%clk 0:02:56.2]} 6. Re1 {[%clk 0:03:00.1]} 6... b5 {[%clk 0:02:56.5]}
7. Bb3 {[%clk 0:03:00]} 7... d6 {[%clk 0:02:56.8]} 8. h3 {[%clk 0:02:59.3]} 8...
Na5 {[%clk 0:02:55]} 9. d3 {[%clk 0:02:58.6]} 9... Nxb3 {[%clk 0:02:54.4]} 10.
axb3 {[%clk 0:02:58.3]} 10... O-O {[%clk 0:02:54.3]} 11. c4 {[%clk 0:02:58.5]}
11... Bd7 {[%clk 0:02:52.2]} 12. Nc3 {[%clk 0:02:57.1]} 12... b4 {[%clk
0:02:48.2]} 13. Nd5 {[%clk 0:02:56.1]} 13... Nxd5 {[%clk 0:02:42.7]} 14. exd5
{[%clk 0:02:56.2]} 14... f5 {[%clk 0:02:41.7]} 15. Qe2 {[%clk 0:02:50.1]} 15...
Bf6 {[%clk 0:02:39.6]} 16. Qd2 {[%clk 0:02:45]} 16... a5 {[%clk 0:02:33.6]} 17.
Qe2 {[%clk 0:02:31.9]} 17... c6 {[%clk 0:02:32.2]} 18. dxc6 {[%clk 0:02:30.4]}
18... Bxc6 {[%clk 0:02:32.5]} 19. Nh2 {[%clk 0:02:17.7]} 19... Qc7 {[%clk
0:02:23.8]} 20. Qh5 {[%clk 0:02:10.8]} 20... g6 {[%clk 0:02:20.6]} 21. Qh6
{[%clk 0:02:09.3]} 21... Bg7 {[%clk 0:02:20.5]} 22. Qh4 {[%clk 0:02:08.4]} 22...
Rae8 {[%clk 0:02:17]} 23. Bh6 {[%clk 0:02:07.8]} 23... d5 {[%clk 0:01:57.7]} 24.
Bxg7 {[%clk 0:02:03.5]} 24... Kxg7 {[%clk 0:01:57.4]} 25. Nf1 {[%clk 0:01:58.7]}
25... d4 {[%clk 0:01:54.2]} 26. Qg3 {[%clk 0:01:44.8]} 26... f4 {[%clk
0:01:29.2]} 27. Qg4 {[%clk 0:01:42.3]} 27... e4 {[%clk 0:01:20.6]} 28. dxe4
{[%clk 0:01:37.6]} 28... Bxe4 {[%clk 0:01:20.7]} 29. Nd2 {[%clk 0:01:36.6]}
29... Bc6 {[%clk 0:01:03]} 30. Qg5 {[%clk 0:01:11.2]} 30... Rf5 {[%clk
0:00:49.2]} 31. Qg4 {[%clk 0:01:09.7]} 31... h5 {[%clk 0:00:37.7]} 32. Qd1
{[%clk 0:01:07.4]} 32... Rxe1+ {[%clk 0:00:30.3]} 33. Qxe1 {[%clk 0:01:06.8]}
33... f3 {[%clk 0:00:30.8]} 34. Nxf3 {[%clk 0:00:55.7]} 34... Bxf3 {[%clk
0:00:30.5]} 35. gxf3 {[%clk 0:00:55.8]} 35... Rxf3 {[%clk 0:00:29.7]} 36. Kg2
{[%clk 0:00:54.8]} 36... Qf4 {[%clk 0:00:25.1]} 37. Rxa5 {[%clk 0:00:48.4]}
37... Kh6 {[%clk 0:00:23.6]} 38. Re5 {[%clk 0:00:42.3]} 38... d3 {[%clk
0:00:18.9]} 39. Rd5 {[%clk 0:00:37.8]} 39... h4 {[%clk 0:00:07.9]} 40. c5 {[%clk
0:00:35.7]} 40... Qf7 {[%clk 0:00:05.8]} 41. Qd2+ {[%clk 0:00:30.9]} 41... Kh7
{[%clk 0:00:05.4]} 42. Rxd3 {[%clk 0:00:30.3]} 42... Rxd3 {[%clk 0:00:03.9]} 43.
Qxd3 {[%clk 0:00:30.4]} 43... Qb7+ {[%clk 0:00:04.2]} 44. Qf3 {[%clk 0:00:28.1]}
44... Qc7 {[%clk 0:00:04]} 45. c6 {[%clk 0:00:28.1]} 45... g5 {[%clk 0:00:04]}
46. Qd5 {[%clk 0:00:26.6]} 46... Qf4 {[%clk 0:00:02.4]} 47. Qd7+ {[%clk
0:00:22.9]} 47... Kh6 {[%clk 0:00:02.7]} 48. c7 {[%clk 0:00:23.2]} 48... Qe4+
{[%clk 0:00:02.5]} 49. Kf1 {[%clk 0:00:21.8]} 49... Qb1+ {[%clk 0:00:02.1]} 50.
Ke2 {[%clk 0:00:22.1]} 50... Qxb2+ {[%clk 0:00:02]} 51. Qd2 {[%clk 0:00:20.5]}
51... Qe5+ {[%clk 0:00:01.9]} 52. Kf1 {[%clk 0:00:18.6]} 52... Qxc7 {[%clk
0:00:02.6]} 53. Qxb4 {[%clk 0:00:19]} 53... Qc1+ {[%clk 0:00:02.9]} 54. Kg2
{[%clk 0:00:18.6]} 54... Qc6+ {[%clk 0:00:03.3]} 55. Kg1 {[%clk 0:00:15.1]}
55... Qc1+ {[%clk 0:00:03.5]} 56. Kg2 {[%clk 0:00:15.2]} 56... Qc6+ {[%clk
0:00:03.7]} 57. Kf1 {[%clk 0:00:15.4]} 57... Qc1+ {[%clk 0:00:03.9]} 58. Ke2
{[%clk 0:00:15.8]} 58... Qc2+ {[%clk 0:00:04.1]} 59. Ke3 {[%clk 0:00:16]} 59...
Qc1+ {[%clk 0:00:03.3]} 60. Qd2 {[%clk 0:00:15.2]} 60... Qc5+ {[%clk 0:00:03.4]}
61. Qd4 {[%clk 0:00:14.2]} 61... Qc1+ {[%clk 0:00:03.7]} 62. Ke4 {[%clk
0:00:14]} 62... Qc2+ {[%clk 0:00:02.7]} 63. Ke5 {[%clk 0:00:09.8]} 63... Qe2+
{[%clk 0:00:02.4]} 64. Kf6 {[%clk 0:00:08.7]} 64... Qf3+ {[%clk 0:00:02.6]} 65.
Ke7 {[%clk 0:00:07.6]} 65... Qxh3 {[%clk 0:00:02.9]} 66. Qh8+ {[%clk 0:00:06.7]}
66... Kg6 {[%clk 0:00:03.4]} 67. Qg8+ {[%clk 0:00:06.4]} 67... Kh5 {[%clk
0:00:02.5]} 68. Qh7+ {[%clk 0:00:06.3]} 68... Kg4 {[%clk 0:00:03.1]} 69. Qe4+
{[%clk 0:00:05.5]} 69... Kh5 {[%clk 0:00:03.7]} 70. Qh7+ {[%clk 0:00:02.4]}
70... Kg4 {[%clk 0:00:04.2]} 0-1